bitfinex-derivatives/quotes_SOLF0:USTF0_20250816
["timestamp","ask_amount","ask_price","bid_price","bid_amount"]
[1755353835945,3.13,187.09,187.02,5.3435]
[1755353836448,3.13,187.09,187.01,1.03]
[1755353836751,3.13,187.09,187.03,1.03]
[1755353837348,3.13,187.09,187.03,6.3732]
[1755353837948,3.13,187.09,187.04,6.3729]
[1755353838246,3.13,187.09,187.05,1.03]
[1755353838448,3.13,187.09,187.01,3.65797471]
[1755353838849,3.13,187.09,187.01,4.68797471]
[1755353839149,3.13,187.09,187.02,5.3434]
[1755353839548,3.13,187.09,186.99,1.03]
[1755353839747,3.13,187.09,186.99,6.3744]
[1755353839947,3.13,187.09,186.99,1.03]
[1755353840856,3.13,187.09,187.01,6.3738]
[1755353841049,3.13,187.09,187.02,1.03]
[1755353841448,3.13,187.09,187.02,6.3733]
[1755353843843,3.13,187.09,187.02,5.3433]
[1755353844048,3.13,187.09,187.02,6.3733]
[1755353845145,3.13,187.09,187.03,5.3433]
[1755353845345,3.13,187.09,187.02,1.03]
[1755353846853,3.13,187.09,187.03,5.3432]
[1755353847751,3.13,187.09,187.02,6.3735]
[1755353848050,3.13,187.09,187.02,1.03]
[1755353849045,3.13,187.09,187.03,6.3731]
[1755353850656,3.13,187.09,187.03,1.03]
[1755353852255,3.13,187.09,187.03,6.3733]
[1755353853556,2.91,187.13,187.05,1.03]
[1755353853751,4.02055589,187.12,187.02,1.03]
[1755353853956,2.91,187.1,187.02,1.03]
[1755353855551,2.91,187.1,186.99,1.03]
[1755353855856,4.02039865,187.09,186.99,1.03]
[1755353856059,2.91,187.1,186.99,1.03]
[1755353856251,3.65797471,187.11,186.99,1.03]
[1755353856252,4.02060138,187.09,186.99,1.03]
[1755353856453,2.91,187.08,186.99,1.03]
[1755353856655,2.91,187.07,186.97,1.03]
[1755353856855,2.91,187.04,186.95,1.03]
[1755353858759,2.91,187.04,186.96,1.03]
[1755353860358,2.91,187.04,186.97,1.03]
[1755353863464,2.91,187.04,186.98,1.03]
[1755353864262,2.91,187.04,186.99,1.03]
[1755353864659,2.91,187.04,186.98,3.65797471]
[1755353864867,2.91,187.04,187.0,1.03]
[1755353866567,2.91,187.04,186.99,5.3443]
[1755353866867,2.91,187.04,187.02,1.03]
[1755353867270,2.91,187.04,187.03,1.03]
[1755353867770,2.91,187.03,187.02,1.03]
[1755353869074,2.84,187.02,187.01,4.68797471]
[1755353869272,2.84,187.02,187.01,3.65797471]
[1755353869468,2.84,187.02,186.99,1.03]
[1755353869662,2.84,187.11,186.99,6.3743]
[1755353869871,4.03318068,187.1,186.99,6.3743]
[1755353870170,2.84,187.08,186.99,6.3743]
[1755353871762,2.84,187.08,186.99,1.03]
[1755353871969,2.84,187.06,186.96,1.03]
[1755353872179,2.84,187.04,186.96,1.03]
[1755353873378,2.84,187.04,186.95,3.65797471]
[1755353873571,2.84,187.04,186.97,1.03]
[1755353875076,2.84,187.04,186.9,403.12]
[1755353875276,2.84,187.02,186.92,4.68797471]
[1755353875575,4.04106302,187.03,186.92,3.65797471]
[1755353875576,2.84,187.0,186.92,3.65797471]
[1755353876474,2.84,187.0,186.92,4.68797471]
[1755353877869,2.84,187.0,186.92,1.03]
[1755353879773,2.84,187.0,186.9,1.03]
[1755353880477,2.84,187.0,186.89,3.65797471]
[1755353880678,2.84,187.0,186.92,3.65797471]
[1755353880980,2.84,187.0,186.93,1.03]
[1755353881183,2.84,187.0,186.95,5.3455]
[1755353881376,2.84,187.0,186.96,1.03]
[1755353881577,2.84,187.0,186.9,1.03]
[1755353882781,2.84,187.0,186.91,5.3466]
[1755353882980,2.84,187.0,186.92,1.03]
[1755353884481,2.84,187.0,186.93,1.03]
[1755353884883,2.84,187.0,186.95,5.3455]
[1755353885079,2.84,187.05,186.97,1.03]
[1755353885385,2.84,187.03,186.99,1.03]
[1755353885584,2.84,187.08,186.99,1.03]
[1755353885773,2.84,187.06,186.99,1.03]
[1755353885972,2.84,187.06,187.0,5.3441]
[1755353886182,2.84,187.04,186.98,3.65797471]
[1755353886482,2.84,187.04,186.97,1.03]
[1755353886682,2.84,187.04,186.95,4.68797471]
[1755353887686,2.84,187.04,186.97,1.03]
[1755353888986,2.84,187.04,186.97,6.3749]
[1755353889685,2.84,187.04,186.97,1.03]
[1755353889886,2.84,187.04,186.95,4.68797471]
[1755353890287,2.84,187.04,186.95,10.03347471]
[1755353890988,2.84,187.04,186.96,5.3453]
[1755353891788,2.84,187.04,186.97,1.03]
[1755353892388,2.84,187.04,187.0,1.03]
[1755353892784,88.29579919,187.11,187.0,5.3441]
[1755353892989,2.84,187.09,187.0,6.3741]
[1755353893288,88.29579919,187.11,187.0,6.3741]
[1755353893289,2.84,187.07,187.0,6.3741]
[1755353893583,2.84,187.05,187.0,6.3741]
[1755353894490,2.84,187.05,187.01,5.3439]
[1755353894791,2.84,187.1,187.01,6.3739]
[1755353894988,2.84,187.08,187.01,6.3739]
[1755353895190,2.84,187.06,187.01,6.3739]
[1755353897891,2.84,187.1,187.02,1.03]
[1755353898195,2.84,187.08,187.02,1.03]
[1755353898395,2.84,187.06,187.02,1.03]
[1755353898795,2.89,187.1,187.02,1.03]
[1755353898992,2.89,187.08,187.02,1.03]
[1755353899190,6.93394313,187.07,187.02,1.03]
[1755353899391,2.89,187.07,187.02,1.03]
[1755353899587,2.89,187.06,187.02,1.03]
[1755353899892,2.89,187.05,187.04,1.02]
[1755353900095,2.89,187.03,187.01,1.02]
[1755353900290,2.89,187.02,187.01,1.02]
[1755353903096,2.89,187.02,186.99,5.3444]
[1755353903295,2.89,187.01,186.99,1.02]
[1755353904783,3.65797471,187.1,186.99,1.02]
[1755353904991,6.92888247,187.09,186.98,3.65797471]
[1755353905187,2.89,187.07,186.98,4.67797471]
[1755353905394,2.89,187.05,186.98,4.67797471]
[1755353905796,84.63782448,187.11,186.98,4.67797471]
[1755353906097,2.89,187.09,187.02,1.02]
[1755353906394,2.89,187.07,187.02,6.3635]
[1755353906596,2.89,187.07,187.03,1.02]
[1755353909406,2.89,187.07,187.01,10.02177471]
[1755353911501,80.19697993,187.11,187.02,5.3436]
[1755353911697,2.89,187.09,187.03,1.02]
[1755353911897,4.03802618,187.08,187.03,1.02]
[1755353912100,80.19697993,187.11,187.05,1.02]
[1755353912299,2.89,187.09,187.03,1.02]
[1755353912603,2.89,187.09,187.03,6.3631]
[1755353914298,2.89,187.09,187.03,1.02]
[1755353914699,2.89,187.09,187.02,1.02]
[1755353917307,2.89,187.09,187.02,6.3633]
[1755353924206,2.89,187.07,187.02,6.3633]
[1755353924413,2.89,187.07,187.03,1.02]
[1755353924613,2.89,187.07,187.01,5.3438]
[1755353924912,2.89,187.07,187.01,6.3638]
[1755353926415,2.89,187.07,187.02,5.3435]
[1755353926616,2.89,187.07,187.02,6.3635]
[1755353927313,2.89,187.07,186.99,3.65797471]
[1755353927515,2.89,187.05,186.96,3.65797471]
[1755353927816,2.89,187.05,186.96,4.67797471]
[1755353928010,2.89,187.05,186.97,1.02]
[1755353928207,4.04333071,187.04,186.97,1.02]
[1755353928417,6.9329613,187.03,186.94,1.02]
[1755353928613,3.02,187.01,186.94,1.02]
[1755353929118,3.02,187.01,186.9,3.65797471]
[1755353929415,3.02,187.01,186.85,246.95276989]
[1755353929416,3.02,186.99,186.91,1.02]
[1755353929615,3.02,186.99,186.91,6.3665]
[1755353931616,3.02,186.99,186.92,5.3464]
[1755353932218,3.02,186.99,186.91,6.3667]
[1755353934018,3.02,186.99,186.91,5.3467]
[1755353934221,3.02,186.99,186.92,1.03]
[1755353934922,3.02,186.99,186.92,6.3765]
[1755353935721,3.02,186.99,186.93,5.3461]
[1755353935922,3.02,187.02,186.93,1.03]
[1755353936113,4.02757398,187.01,186.93,1.03]
[1755353936414,3.02,187.0,186.93,1.03]
[1755353937021,3.02,187.0,186.97,1.03]
[1755353937921,3.02,187.05,186.97,6.3748]
[1755353938221,3.02,187.03,186.97,6.3748]
[1755353938924,3.02,187.03,186.97,1.03]
[1755353939725,3.02,187.03,186.97,6.375]
[1755353941526,3.02,187.03,186.9,1.03]
[1755353941721,3.02,187.03,186.93,1.03]
[1755353941915,3.02,187.03,186.93,6.376]
[1755353942127,3.02,187.03,186.92,3.65797471]
[1755353942128,3.02,187.03,186.94,1.03]
[1755353942922,3.02,187.03,186.96,1.03]
[1755353943225,3.02,187.03,186.97,1.03]
[1755353944720,3.02,187.03,186.95,10.03347471]
[1755353945120,3.02,187.03,186.96,1.03]
[1755353945924,3.02,187.03,186.95,3.65797471]
[1755353946727,3.02,187.03,186.96,1.03]
[1755353948022,3.02,187.03,186.95,3.65797471]
[1755353948328,3.02,187.03,186.95,4.68797471]
[1755353949626,3.02,187.01,186.92,4.68797471]
[1755353949826,3.02,187.01,186.93,1.03]
[1755353951326,3.02,187.01,186.94,1.03]
[1755353952631,3.02,187.01,186.92,4.68797471]
[1755353953019,3.02,187.01,186.93,1.03]
[1755353953925,3.02,187.01,186.93,5.346]
[1755353954131,3.02,187.01,186.94,1.03]
[1755353955435,3.02,187.01,186.94,5.3459]
[1755353955633,3.02,187.01,186.95,1.03]
[1755353956634,3.02,187.01,186.92,4.68797471]
[1755353957033,3.02,187.01,186.92,10.03427471]
[1755353957428,3.02,187.01,186.93,1.03]
[1755353958431,3.02,187.01,186.91,5.3466]
[1755353958622,3.02,187.01,186.91,1.03]
[1755353960333,3.02,187.01,186.92,1.03]
[1755353960835,3.02,187.01,186.92,6.3764]
[1755353961134,3.02,187.01,186.93,1.03]
[1755353962433,4.03929278,187.0,186.93,1.03]
[1755353962637,3.13,187.02,186.93,1.03]
[1755353962934,3.13,187.0,186.93,1.03]
[1755353966141,3.13,187.0,186.95,1.03]
[1755353967027,3.13,187.0,186.96,1.03]
[1755353968140,3.13,187.06,186.97,1.03]
[1755353968339,10.09051209,187.05,186.97,1.03]
[1755353968542,3.13,187.03,186.97,6.3749]
[1755353968732,3.13,187.01,186.98,1.03]
[1755353973136,3.13,187.01,186.97,5.3449]
[1755353973441,3.13,187.01,186.97,6.3749]
[1755353974434,4.43416793,187.08,187.0,3.65797471]
[1755353974642,3.13,187.06,187.03,3.65797471]
[1755353974831,80.19697993,187.11,187.06,5.3423]
[1755353975034,5.37854061,187.1,187.06,1.03]
[1755353975238,3.13,187.13,187.06,3.65797471]
[1755353975431,3.13,187.11,187.08,1.03]
[1755353975634,3.13,187.1,187.08,1.03]
[1755353975839,3.13,187.09,187.08,1.03]
[1755353976737,3.13,187.11,187.06,3.65797471]
[1755353976939,3.13,187.16,187.1,1.03]
[1755353977237,3.13,187.2,187.13,1.03]
[1755353977441,3.13,187.18,187.13,1.03]
[1755353977638,4.03030867,187.17,187.09,4.68797471]
[1755353977840,3.13,187.15,187.06,9.00037471]
[1755353978143,4.02988351,187.14,187.07,1.03]
[1755353978445,3.13,187.15,187.07,1.03]
[1755353978635,4.02770282,187.14,187.07,1.03]
[1755353978836,4.43416793,187.19,187.07,1.03]
[1755353978837,3.13,187.13,187.07,1.03]
[1755353979137,3.13,187.18,187.09,3.65797471]
[1755353979334,3.13,187.18,187.13,1.03]
[1755353981241,3.13,187.18,187.12,3.65797471]
[1755353982845,7.6739022,187.17,187.06,1.03]
[1755353983048,7.14583884,187.16,187.06,1.03]
[1755353983346,3.13,187.16,187.06,1.03]
[1755353984239,3.13,187.16,187.0,44.0]
[1755353984240,3.13,187.16,187.09,1.03]
[1755353986146,3.13,187.22,187.09,1.03]
[1755353986450,3.13,187.2,187.1,1.03]
[1755353987042,3.13,187.2,187.14,3.65797471]
[1755353987348,3.13,187.2,187.15,1.03]
[1755353987543,3.13,187.2,187.14,3.65797471]
[1755353987739,3.13,187.2,187.14,4.68797471]
[1755353988536,3.13,187.2,187.15,1.03]
[1755353988842,3.07,187.19,187.16,1.03]
[1755353989051,3.07,187.18,187.16,1.03]
[1755353989249,8.09214264,187.3,187.17,3.65797471]
[1755353989449,3.07,187.21,187.19,1.03]
[1755353990249,3.07,187.2,187.19,1.03]
[1755353990445,3.07,187.26,187.14,3.65797471]
[1755353990650,3.07,187.24,187.14,3.65797471]
[1755353991741,3.07,187.23,187.12,1.03]
[1755353992543,4.00207069,187.22,187.11,3.65797471]
[1755353992744,3.07,187.21,187.12,1.03]
[1755353994849,6.72797471,187.21,187.1,1.03]
[1755353995050,3.07,187.2,187.1,1.03]
[1755353995653,3.07,187.2,187.07,4.68797471]
[1755353995952,3.07,187.17,187.07,4.68797471]
[1755353996550,3.07,187.17,187.08,1.03]
[1755354001358,3.07,187.17,187.08,6.3719]
[1755354001558,3.07,187.17,187.09,1.03]
[1755354001962,3.07,187.21,187.14,1.03]
[1755354002360,3.07,187.21,187.16,5.3396]
[1755354002559,3.07,187.2,187.16,3.65797471]
[1755354002756,131.8,187.26,187.17,1.03]
[1755354002951,7.07375186,187.25,187.17,1.03]
[1755354003152,3.07,187.25,187.21,1.03]
[1755354004062,3.07,187.23,187.21,1.03]
[1755354004659,3.07,187.24,187.2,1.03]
[1755354005468,3.07,187.31,187.23,1.03]
[1755354005669,3.07,187.29,187.22,3.65797471]
[1755354005862,3.07,187.29,187.21,1.03]
[1755354005863,4.00427634,187.28,187.21,1.03]
[1755354006060,3.07,187.27,187.21,1.03]
[1755354006664,3.07,187.27,187.16,4.68797471]
[1755354006858,3.07,187.25,187.16,1.03]
[1755354007168,3.07,187.23,187.16,1.03]
[1755354007368,3.07,187.23,187.14,1.03]
[1755354008366,3.07,187.21,187.14,1.03]
[1755354008761,3.07,187.26,187.14,1.03]
[1755354009064,3.07,187.25,187.23,1.03]
[1755354009267,3.07,187.27,187.24,1.03]
[1755354009565,3.07,187.27,187.25,1.03]
[1755354010268,4.43416793,187.32,187.22,3.65797471]
[1755354010466,3.07,187.3,187.22,3.65797471]
[1755354010670,3.07,187.28,187.21,6.3682]
[1755354010871,3.07,187.28,187.21,1.03]
[1755354011477,3.07,187.26,187.19,5.76326404]
[1755354011681,3.07,187.26,187.19,6.79326404]
[1755354012779,3.07,187.26,187.19,5.76326404]
[1755354012971,3.07,187.26,187.2,1.03]
[1755354013177,3.07,187.26,187.24,1.03]
[1755354014176,3.07,187.25,187.24,1.03]
[1755354015875,3.07,187.3,187.24,1.03]
[1755354016179,3.07,187.28,187.2,1.03]
[1755354016779,3.07,187.26,187.19,45.03]
[1755354016980,3.07,187.24,187.19,1.03]
[1755354017175,3.07,187.3,187.19,1.03]
[1755354017373,3.07,187.28,187.19,1.03]
[1755354017569,3.07,187.26,187.19,1.03]
[1755354017772,5.92370875,187.32,187.19,1.03]
[1755354017773,4.01568982,187.25,187.19,1.03]
[1755354018075,3.07,187.23,187.2,1.03]
[1755354018380,5.92370875,187.32,187.18,1.03]
[1755354018381,3.07,187.28,187.18,1.03]
[1755354018580,2.88,187.26,187.22,1.02]
[1755354018777,4.02060184,187.25,187.22,1.02]
[1755354018973,2.88,187.27,187.23,1.02]
[1755354019670,2.88,187.29,187.23,1.02]
[1755354019875,4.01405114,187.28,187.23,1.02]
[1755354020075,2.88,187.28,187.23,1.02]
[1755354020474,495.39416793,187.33,187.23,1.02]
[1755354020777,4.01375469,187.32,187.23,1.02]
[1755354020979,6.89375469,187.31,187.23,1.02]
[1755354021176,4.01375469,187.3,187.25,5.337]
[1755354021385,4.01375469,187.29,187.25,5.337]
[1755354021584,4.01375469,187.28,187.25,6.357]
[1755354021778,2.88,187.27,187.25,1.02]
[1755354022078,495.39416793,187.33,187.22,1.02]
[1755354022287,6.89450165,187.32,187.22,1.02]
[1755354022582,2.88,187.3,187.22,1.02]
[1755354022780,4.01450165,187.29,187.22,1.02]
[1755354022983,2.88,187.28,187.25,6.3568]
[1755354024284,2.88,187.27,187.25,6.3568]
[1755354025683,2.88,187.27,187.25,1.02]
[1755354025985,2.88,187.25,187.24,5.3373]
[1755354026484,2.88,187.25,187.24,6.3573]
[1755354026986,2.88,187.24,187.23,5.3375]
[1755354027485,2.88,187.32,187.24,5.3373]
[1755354027780,2.88,187.3,187.21,5.76326404]
[1755354028085,131.94,187.33,187.21,49.76326404]
[1755354028273,2.88,187.29,187.21,49.76326404]
[1755354028479,2.88,187.31,187.22,1.02]
[1755354028880,2.88,187.3,187.28,1.02]
[1755354029578,2.88,187.29,187.28,1.02]
[1755354031685,2.88,187.32,187.28,6.3662]
[1755354033790,2.88,187.32,187.29,5.3359]
[1755354033991,2.88,187.32,187.29,6.3559]
[1755354034592,2.88,187.32,187.29,1.02]
[1755354034780,2.88,187.32,187.28,5.3361]
[1755354035086,2.88,187.37,187.26,1.02]
[1755354035284,2.88,187.35,187.29,1.02]
[1755354035685,2.88,187.35,187.32,6.3548]
[1755354035882,2.88,187.35,187.33,1.02]
[1755354036083,2.88,187.34,187.33,1.02]
[1755354036284,2.88,187.37,187.29,5.76326404]
[1755354036490,2.88,187.37,187.3,1.02]
[1755354036788,2.88,187.37,187.34,1.02]
[1755354037192,2.88,187.46,187.37,1.02]
[1755354037377,2.88,187.44,187.37,1.02]
[1755354037583,2.88,187.44,187.4,1.02]
[1755354038289,2.88,187.44,187.37,3.65293652]
[1755354038484,2.88,187.44,187.37,4.67293652]
[1755354038683,2.88,187.44,187.4,5.3327]
[1755354040287,2.88,187.44,187.4,6.3527]
[1755354040884,2.88,187.44,187.4,5.3327]
[1755354041086,2.88,187.48,187.4,5.3327]
[1755354041286,2.88,187.46,187.4,5.3327]
[1755354043089,2.88,187.48,187.42,1.02]
[1755354043388,2.88,187.48,187.39,5.75345174]
[1755354043389,2.88,187.48,187.44,1.02]
[1755354043593,2.88,187.48,187.44,6.3516]
[1755354043987,2.88,187.52,187.44,1.02]
[1755354044192,358.66,187.53,187.44,1.02]
[1755354044193,2.88,187.5,187.44,1.02]
[1755354045188,2.88,187.5,187.45,5.3311]
[1755354045392,2.88,187.5,187.44,1.02]
[1755354045793,2.88,187.5,187.44,6.3516]
[1755354046291,2.88,187.5,187.43,5.3319]
[1755354047295,3.99782722,187.49,187.43,5.3319]
[1755354047491,2.88,187.48,187.43,5.3319]
[1755354047794,2.88,187.46,187.45,1.02]
[1755354048096,2.88,187.52,187.45,1.02]
[1755354048802,2.88,187.52,187.47,5.75345174]
[1755354049097,131.76,187.56,187.48,1.01]
[1755354049299,3.0,187.51,187.49,1.01]
[1755354049698,3.0,187.55,187.48,1.01]
[1755354049890,3.0,187.58,187.51,5.75345174]
[1755354050095,3.0,187.58,187.52,1.01]
[1755354051002,3.0,187.58,187.49,5.75345174]
[1755354051202,3.99423496,187.57,187.47,1.01]
[1755354051406,3.0,187.56,187.47,1.01]
[1755354051695,3.0,187.56,187.49,5.75345174]
[1755354051899,3.0,187.56,187.5,1.01]
[1755354052100,3.0,187.62,187.53,5.75345174]
[1755354052504,3.0,187.62,187.57,5.3278]
[1755354053004,3.0,187.62,187.55,5.3284]
[1755354053197,3.0,187.62,187.54,1.01]
[1755354054402,3.0,187.62,187.56,5.3282]
[1755354054605,3.0,187.62,187.54,1.01]
[1755354055000,3.0,187.62,187.5,1.01]
[1755354055203,3.0,187.62,187.54,1.01]
[1755354056702,3.0,187.62,187.5,1.01]
[1755354057106,3.0,187.62,187.55,5.3284]
[1755354057404,3.0,187.62,187.51,1.01]
[1755354057897,3.0,187.62,187.52,1.01]
[1755354058804,3.0,187.62,187.54,5.3288]
[1755354059006,3.0,187.62,187.54,1.01]
[1755354060103,3.0,187.62,187.56,5.3282]
[1755354060310,3.0,187.62,187.54,1.01]
[1755354060697,3.0,187.62,187.49,5.75345174]
[1755354060902,3.0,187.6,187.47,1.01]
[1755354061303,3.0,187.6,187.5,5.3299]
[1755354061704,3.0,187.6,187.5,1.01]
[1755354061903,3.0,187.6,187.52,6.3391]
[1755354062106,3.0,187.6,187.52,1.01]
[1755354062506,3.0,187.6,187.5,1.01]
[1755354062706,3.0,187.6,187.51,5.3295]
[1755354062908,3.0,187.6,187.5,1.01]
[1755354063710,3.0,187.6,187.52,5.3292]
[1755354063902,3.0,187.6,187.51,1.01]
[1755354064712,3.0,187.64,187.55,3.64456663]
[1755354064911,3.0,187.62,187.52,5.3293]
[1755354065108,3.0,187.6,187.52,5.3293]
[1755354065509,3.0,187.6,187.53,5.329]
[1755354065708,3.0,187.6,187.53,1.01]
[1755354066912,3.0,187.6,187.54,5.3288]
[1755354067512,3.0,187.6,187.53,1.01]
[1755354068107,3.0,187.6,187.55,5.3285]
[1755354068413,3.0,187.6,187.55,1.01]
[1755354069314,3.0,187.6,187.54,8.97326663]
[1755354070013,3.0,187.6,187.55,5.3285]
[1755354070215,3.0,187.6,187.54,3.64456663]
[1755354070614,3.0,187.6,187.55,5.3285]
[1755354070814,3.0,187.6,187.54,3.64456663]
[1755354071314,3.0,187.6,187.54,8.97316663]
[1755354071510,3.0,187.58,187.51,3.64456663]
[1755354071714,3.0,187.58,187.5,1.01]
[1755354071915,3.0,187.58,187.5,5.3298]
[1755354072111,3.0,187.56,187.48,3.64456663]
[1755354072316,3.0,187.56,187.49,1.01]
[1755354072618,3.0,187.56,187.51,5.3296]
[1755354072910,3.0,187.56,187.47,1.01]
[1755354073111,3.0,187.54,187.45,4.65456663]
[1755354073319,3.0,187.52,187.45,4.65456663]
[1755354073514,3.0,187.52,187.46,5.3311]
[1755354073816,3.0,187.52,187.46,1.01]
[1755354074013,3.0,187.52,187.42,117.58539908]
[1755354074014,4.43416793,187.58,187.48,3.64456663]
[1755354074214,3.0,187.56,187.48,3.64456663]
[1755354074415,3.0,187.54,187.48,3.64456663]
[1755354074717,3.0,187.52,187.45,3.64456663]
[1755354075015,3.0,187.52,187.45,4.65456663]
[1755354075617,3.0,187.52,187.43,1.01]
[1755354076012,3.0,187.5,187.42,121.22996571]
[1755354076215,3.0,187.48,187.39,3.64456663]
[1755354076416,3.0,187.46,187.39,3.64456663]
[1755354077219,3.0,187.46,187.4,5.3326]
[1755354077614,3.0,187.46,187.39,3.64456663]
[1755354077818,3.0,187.46,187.41,5.3325]
[1755354078222,3.99703973,187.45,187.39,5.333]
[1755354078422,3.0,187.43,187.39,5.333]
[1755354078920,2.91,187.42,187.38,1.01]
[1755354079118,4.43416793,187.48,187.33,402.54]
[1755354079119,2.91,187.48,187.39,3.64456663]
[1755354079318,2.91,187.46,187.43,1.02]
[1755354079714,4.43416793,187.53,187.43,1.02]
[1755354079916,4.43416793,187.53,187.47,5.3305]
[1755354079917,4.00475915,187.52,187.47,5.3305]
[1755354080119,4.00475915,187.51,187.47,5.3305]
[1755354080419,2.91,187.49,187.47,5.3305]
[1755354080619,6.91475915,187.48,187.47,5.3305]
[1755354081521,2.91,187.46,187.43,1.02]
[1755354081926,2.91,187.46,187.42,3.64456663]
[1755354082125,2.91,187.46,187.44,1.02]
[1755354082733,2.91,187.51,187.41,1.02]
[1755354082926,4.01264405,187.5,187.41,1.02]
[1755354083230,6.92264405,187.49,187.41,1.02]
[1755354083431,4.01264405,187.48,187.41,1.02]
[1755354083636,8.94678639,187.57,187.4,5.7505583]
[1755354083637,4.43416793,187.53,187.47,5.3306]
[1755354083834,2.91,187.51,187.47,5.3306]
[1755354084131,2.91,187.48,187.46,5.331]
[1755354084328,2.91,187.47,187.46,5.331]
[1755354086238,2.91,187.53,187.45,5.3313]
[1755354086540,2.91,187.51,187.41,1.02]
[1755354086737,2.91,187.49,187.41,1.02]
[1755354087038,2.91,187.47,187.41,1.02]
[1755354087741,2.91,187.46,187.45,5.3313]
[1755354088136,4.43416793,187.53,187.48,5.3305]
[1755354088331,6.93143071,187.52,187.45,1.02]
[1755354088536,6.93143071,187.51,187.45,1.02]
[1755354088842,2.91,187.5,187.49,5.3302]
[1755354089034,2.91,187.5,187.46,1.02]
[1755354089230,2.91,187.49,187.47,1.02]
[1755354090141,2.91,187.48,187.44,5.7505583]
[1755354090442,2.91,187.48,187.46,1.02]
[1755354090641,2.91,187.48,187.47,5.3306]
[1755354096745,7.34416793,187.57,187.44,5.7505583]
[1755354096945,2.91,187.55,187.42,45.02]
[1755354097147,2.91,187.53,187.42,44.0]
[1755354097346,2.91,187.51,187.44,5.3316]
[1755354097538,2.91,187.51,187.41,1.02]
[1755354100743,2.91,187.51,187.41,44.0]
[1755354100942,2.91,187.51,187.42,1.02]
[1755354102245,2.91,187.51,187.41,44.0]
[1755354102648,4.03406581,187.5,187.43,5.3318]
[1755354102850,2.91,187.49,187.43,5.3318]
[1755354106748,2.91,187.49,187.4,3.65030672]
[1755354106953,4.03449961,187.48,187.38,1.02]
[1755354107150,2.91,187.49,187.38,1.02]
[1755354107151,4.03449961,187.47,187.38,1.02]
[1755354107346,2.91,187.46,187.38,1.02]
[1755354108250,2.91,187.46,187.4,5.3326]
[1755354109354,2.91,187.46,187.39,5.333]
[1755354109850,4.43416793,187.53,187.45,5.3313]
[1755354110047,4.03584046,187.52,187.45,5.3313]
[1755354110250,4.03584046,187.51,187.45,5.3313]